bitfinex/quotes_SOLUSD_20240605
["timestamp","ask_amount","ask_price","bid_price","bid_amount"]
[1717557420470,2.1402,172.88,172.84,2.1406]
[1717557420870,2.1401,172.89,172.85,2.1405]
[1717557421271,2.14,172.9,172.86,2.1404]
[1717557421471,2.1401,172.89,172.85,2.1405]
[1717557421679,2.14,172.9,172.86,2.1404]
[1717557421882,7.23,172.87,172.86,2.1404]
[1717557422067,2.1397,172.92,172.88,2.1401]
[1717557422266,7.23,172.9,172.89,2.14]
[1717557422976,33.198,172.98,172.9,120.0]
[1717557423176,7.23,172.93,172.9,124.2798]
[1717557423392,7.23,172.93,172.92,2.1396]
[1717557423775,2.1391,172.97,172.93,2.1395]
[1717557424592,2.1391,172.97,172.92,2.1396]
[1717557425082,2.139,172.98,172.92,120.0]
[1717557425386,2.139,172.98,172.93,2.1395]
[1717557426176,2.1391,172.97,172.93,2.1395]
[1717557426577,2.1392,172.96,172.92,2.1396]
[1717557427269,6.4166,172.99,172.9,120.0]
[1717557427466,28.0974,172.97,172.89,2.14]
[1717557427672,2.1395,172.94,172.89,2.14]
[1717557427897,2.1396,172.93,172.89,2.14]
[1717557428592,2.1395,172.94,172.89,2.14]
[1717557429397,2.1395,172.94,172.9,2.1399]
[1717557429582,14.973,172.98,172.88,4.2803]
[1717557429583,23.8194,172.95,172.88,4.2803]
[1717557429779,23.8194,172.95,172.9,2.1399]
[1717557430193,2.1394,172.94,172.9,2.1399]
[1717557430877,23.8194,172.95,172.9,2.1399]
[1717557431400,2.1394,172.94,172.9,2.1399]
[1717557431695,2.1394,172.94,172.88,4.2803]
[1717557431696,2.1395,172.93,172.89,2.14]
[1717557431877,2.1398,172.91,172.87,2.1402]
[1717557432194,2.1398,172.92,172.88,2.1401]
[1717557432393,2.1397,172.92,172.88,2.1401]
[1717557432581,2.1396,172.93,172.89,122.14]
[1717557432782,2.1395,172.94,172.9,2.1399]
[1717557433184,4.2791,172.94,172.84,6.2046]
[1717557433390,2.1396,172.93,172.89,2.14]
[1717557434174,2.1395,172.94,172.87,4.2805]
[1717557434382,2.1395,172.94,172.9,2.1399]
[1717557434990,2.1396,172.93,172.89,2.14]
[1717557435399,2.1397,172.92,172.89,2.14]
[1717557436895,2.1397,172.92,172.88,2.1401]
[1717557437996,2.1398,172.91,172.87,2.1402]
[1717557438303,21.68,172.92,172.87,2.1403]
[1717557438808,2.1399,172.91,172.87,2.1403]
[1717557438998,2.1401,172.89,172.85,382.4405]
[1717557440287,2.14,172.9,172.86,2.1404]
[1717557441887,2.1399,172.91,172.87,2.1403]
[1717557442087,21.68,172.92,172.85,384.5811]
[1717557442296,2.1399,172.91,172.87,2.1403]
[1717557442689,2.1399,172.91,172.86,2.1403]
[1717557442900,2.1399,172.9,172.86,2.1403]
[1717557443796,2.1399,172.91,172.86,2.1403]
[1717557444198,2.1399,172.91,172.87,2.1403]
[1717557444401,23.8197,172.92,172.88,2.1402]
[1717557444906,2.1399,172.91,172.85,4.2811]
[1717557445094,2.14,172.9,172.86,2.1404]
[1717557445901,7.23,172.87,172.86,2.1404]
[1717557449419,2.1398,172.91,172.87,2.1402]
[1717557449710,7.23,172.88,172.87,2.1402]
[1717557449910,2.1397,172.92,172.88,2.1401]
[1717557450111,7.23,172.89,172.88,2.1401]
[1717557450411,7.23,172.89,172.87,2.1402]
[1717557450619,7.23,172.88,172.87,2.1402]
[1717557450919,2.1398,172.91,172.87,122.1402]
[1717557451209,6.0397,172.95,172.87,120.0]
[1717557451418,2.1396,172.93,172.89,122.14]
[1717557451588,7.23,172.9,172.89,122.14]
[1717557451788,20.4664,172.97,172.91,2.1398]
[1717557452007,2.1394,172.95,172.91,2.1398]
[1717557452299,7.23,172.92,172.91,2.1398]
[1717557452516,7.23,172.92,172.9,2.1398]
[1717557452708,7.23,172.91,172.9,2.1398]
[1717557453517,10.6955,172.97,172.91,2.1398]
[1717557453814,7.23,172.92,172.91,2.1398]
[1717557454320,7.23,172.92,172.9,2.1398]
[1717557454615,7.23,172.91,172.9,2.1398]
[1717557457307,2.1394,172.95,172.91,2.1397]
[1717557457617,7.23,172.92,172.9,2.1399]
[1717557457818,2.1394,172.95,172.91,2.1398]
[1717557458129,7.23,172.92,172.91,2.1398]
[1717557458905,10.6969,172.95,172.87,380.3]
[1717557459101,7.23,172.88,172.87,382.4403]
[1717557463429,2.1397,172.92,172.88,2.1401]
[1717557463724,7.23,172.89,172.88,2.1401]
[1717557466408,7.23,172.89,172.87,2.1402]
[1717557466610,7.23,172.88,172.87,2.1402]
[1717557466930,7.23,172.88,172.85,2.1405]
[1717557467115,7.23,172.86,172.85,2.1405]
[1717557469333,7.23,172.86,172.82,6.4227]
[1717557469536,2.1403,172.88,172.84,2.1406]
[1717557469838,7.23,172.85,172.84,2.1406]
[1717557472732,7.17,172.85,172.84,2.1406]
[1717557475434,31.0601,172.89,172.85,2.1405]
[1717557475634,7.23,172.86,172.85,2.1405]
[1717557476832,7.23,172.86,172.84,2.1406]
[1717557477141,9.3706,172.85,172.81,2.141]
[1717557477343,2.1405,172.86,172.82,2.1409]
[1717557477642,7.23,172.83,172.82,2.1409]
[1717557477847,7.23,172.83,172.78,4.2827]
[1717557478139,2.1408,172.83,172.79,2.1412]
[1717557478328,7.23,172.8,172.79,2.1412]
[1717557479327,7.23,172.8,172.78,2.1413]
[1717557479541,2.1409,172.82,172.79,2.1413]
[1717557479715,7.23,172.8,172.79,2.1413]
[1717557479915,7.23,172.8,172.75,4.2834]
[1717557480131,7.23,172.8,172.78,2.1413]
[1717557480319,7.23,172.79,172.78,2.1413]
[1717557482526,2.141,172.82,172.79,2.1413]
[1717557482715,2.141,172.82,172.78,2.1413]
[1717557482716,7.23,172.8,172.78,2.1413]
[1717557482915,2.141,172.82,172.78,2.1413]
[1717557482916,7.23,172.79,172.78,2.1413]
[1717557484549,7.23,172.79,172.78,2.1414]
[1717557485064,7.23,172.79,172.76,4.2833]
[1717557485250,2.1411,172.81,172.76,4.2833]
[1717557485251,7.23,172.77,172.76,6.4249]
[1717557486249,7.23,172.77,172.76,2.1416]
[1717557486421,7.23,172.77,172.74,120.0]
[1717557486629,2.1413,172.79,172.75,2.1417]
[1717557486829,7.23,172.76,172.75,2.1417]
[1717557487834,7.23,172.76,172.73,19.2783]
[1717557487835,7.23,172.76,172.73,4.284]
[1717557488036,7.23,172.74,172.73,6.426]
[1717557488544,7.23,172.74,172.73,2.142]
[1717557490253,7.23,172.74,172.72,2.1421]
[1717557490459,7.23,172.73,172.7,130.7119]
[1717557490641,7.23,172.71,172.7,130.7119]
[1717557490954,7.23,172.71,172.7,141.424]
[1717557495150,7.23,172.71,172.7,126.427]
[1717557499356,7.23,172.71,172.67,124.2855]
[1717557499565,2.1421,172.73,172.7,2.1424]
[1717557499863,2.1421,172.73,172.67,130.7139]
[1717557499864,7.23,172.71,172.69,2.1424]
[1717557500063,7.23,172.7,172.69,2.1424]
[1717557500439,7.23,172.7,172.69,122.1424]
[1717557505578,29.9716,172.7,172.6,120.0]
[1717557505748,2.143,172.66,172.62,122.1433]
[1717557505951,7.23,172.63,172.62,122.1433]
[1717557506175,2.1427,172.68,172.64,2.1431]
[1717557506473,7.23,172.65,172.62,122.1433]
[1717557506659,37.4897,172.71,172.62,120.0]
[1717557506972,4.2845,172.72,172.64,120.0]
[1717557507160,2.1426,172.69,172.65,2.143]
[1717557507479,28.92,172.71,172.64,2.1431]
[1717557507480,7.23,172.66,172.64,2.1431]
[1717557507761,7.23,172.65,172.64,122.1431]
[1717557508870,15.2511,172.78,172.66,120.0]
[1717557509051,10.708,172.77,172.7,120.0]
[1717557509244,7.23,172.71,172.7,2.1423]
[1717557509645,7.23,172.71,172.69,2.1425]
[1717557509954,7.23,172.71,172.66,2.1428]
[1717557509955,9.3724,172.7,172.66,2.1428]
[1717557510154,7.23,172.67,172.66,2.1428]
[1717557510367,7.23,172.67,172.66,122.1428]
[1717557510944,7.23,172.67,172.66,2.1428]
[1717557516544,7.23,172.67,172.66,6.4286]
[1717557516953,4.2842,172.73,172.67,2.1427]
[1717557517266,7.23,172.68,172.67,2.1427]
[1717557517586,7.23,172.68,172.67,2.1428]
[1717557519983,31.0623,172.71,172.65,10.7151]
[1717557519984,28.92,172.71,172.68,2.1426]
[1717557520184,7.23,172.69,172.67,2.1427]
[1717557520480,7.23,172.68,172.67,2.1427]
[1717557520660,7.23,172.68,172.64,124.2861]
[1717557520861,28.92,172.71,172.64,132.8587]
[1717557520862,7.23,172.65,172.64,132.8587]
[1717557521057,7.23,172.65,172.64,141.6014]
[1717557521482,31.0623,172.71,172.67,2.1427]
[1717557521779,2.1421,172.73,172.69,2.1424]
[1717557521972,7.23,172.7,172.69,2.1424]
[1717557522173,2.1421,172.73,172.69,2.1424]
[1717557522380,2.142,172.74,172.7,2.1423]
[1717557522559,7.23,172.71,172.7,2.1423]
[1717557522760,7.23,172.71,172.69,2.1424]
[1717557523666,23.23994278,172.78,172.71,120.0]
[1717557523995,2.1417,172.76,172.73,2.142]
[1717557524291,7.23,172.74,172.72,2.1421]
[1717557524454,7.23,172.73,172.72,2.1421]
[1717557526166,2.1413,172.8,172.74,120.0]
[1717557526375,7.23,172.75,172.74,2.1418]
[1717557527501,2.1415,172.78,172.74,2.1418]
[1717557527671,2.1415,172.78,172.75,2.1418]
[1717557527996,7.23,172.76,172.75,2.1418]
[1717557528202,7.23,172.76,172.74,2.1418]
[1717557528377,7.23,172.75,172.74,122.1418]
[1717557529600,7.23,172.75,172.74,120.0]
[1717557529780,7.23,172.75,172.74,122.1419]
[1717557529988,2.1415,172.78,172.75,2.1418]
[1717557530294,7.23,172.76,172.75,2.1418]
[1717557532300,28.92,172.8,172.76,120.0]
[1717557532481,2.1411,172.81,172.78,120.0]
[1717557532795,7.23,172.79,172.78,122.1414]
[1717557534004,7.23,172.79,172.78,120.0]
[1717557538182,7.23,172.79,172.72,442.47412691]
[1717557538384,2.1416,172.77,172.73,2.142]
[1717557538591,7.23,172.74,172.73,2.142]
[1717557540606,7.23,172.74,172.73,122.142]
[1717557541216,2.1413,172.79,172.73,120.0]
[1717557541519,2.1413,172.79,172.76,2.1416]
[1717557541683,7.23,172.77,172.76,2.1416]
[1717557542203,7.23,172.77,172.75,122.1417]
[1717557542389,7.23,172.76,172.74,2.1418]
[1717557542580,2.1414,172.78,172.74,2.1418]
[1717557542778,2.1414,172.78,172.75,2.1418]
[1717557543003,7.23,172.76,172.75,2.1418]
[1717557543587,7.23,172.76,172.75,122.1418]
[1717557543912,7.23,172.76,172.74,2.1418]
[1717557544206,7.23,172.75,172.74,2.1418]
[1717557545304,2.1411,172.81,172.77,2.1415]
[1717557545603,6.216,172.82,172.78,2.1414]
[1717557545604,2.1409,172.82,172.78,2.1414]
[1717557545792,7.23,172.79,172.78,2.1414]
[1717557546580,7.23,172.79,172.77,2.1415]
[1717557546785,14.20414278,172.86,172.8,2.1411]
[1717557546993,7.23,172.81,172.8,2.1411]
[1717557547811,7.23,172.81,172.8,122.1411]
[1717557549694,7.23,172.81,172.8,133.0489]
[1717557549886,28.92,172.89,172.84,122.1406]
[1717557550095,7.23,172.85,172.84,120.0]
[1717557550905,7.23,172.85,172.84,122.1407]
[1717557551117,7.23,172.85,172.84,120.0]
[1717557551291,7.23,172.85,172.84,122.1407]
[1717557553692,7.23,172.85,172.82,122.1408]
[1717557553891,7.23,172.83,172.82,122.1408]
[1717557554095,7.23,172.83,172.82,122.3108]
[1717557554503,2.1402,172.88,172.84,120.0]
[1717557554709,7.23,172.85,172.84,120.0]
[1717557554889,28.92,172.89,172.86,2.1404]
[1717557555086,4.2794,172.92,172.87,2.1403]
[1717557555087,2.1398,172.92,172.87,2.1403]
[1717557555294,7.23,172.88,172.87,2.1403]
[1717557555598,7.23,172.88,172.86,2.1404]
[1717557555804,7.23,172.87,172.86,2.1404]
[1717557556741,2.1399,172.9,172.86,2.1404]
[1717557557017,17.3196,172.93,172.86,2.1404]
[1717557557018,7.23,172.87,172.86,122.1403]
[1717557557591,2.1397,172.92,172.88,122.1401]
[1717557557786,7.23,172.89,172.88,122.1401]
[1717557557990,7.23,172.89,172.87,2.1403]
[1717557558207,7.23,172.88,172.85,2.1405]
[1717557558411,7.23,172.86,172.85,2.1405]
[1717557558592,28.92270235,173.01,172.94,120.0]
[1717557558792,2.1386,173.01,172.95,2.1392]
[1717557559016,28.92,172.98,172.95,2.1392]
[1717557559218,28.92,172.98,172.94,122.1394]
[1717557559689,28.92,172.98,172.94,120.0]
[1717557559896,7.23,172.95,172.94,122.1394]
[1717557560291,7.23,172.95,172.94,2.1394]
[1717557560626,2.1387,173.01,172.95,2.1392]
[1717557560799,7.23,172.96,172.95,2.1392]
[1717557560999,7.23,172.96,172.94,120.0]
[1717557561000,7.23,172.96,172.94,2.1394]
[1717557561200,7.23,172.95,172.94,2.1394]
[1717557562524,7.23,172.95,172.94,122.1394]
[1717557563407,7.23,172.95,172.93,2.1395]
[1717557563607,7.23,172.98,172.94,122.1394]
[1717557563807,7.23,172.95,172.94,122.1394]
[1717557565013,2.1396,172.93,172.86,120.0]
[1717557565219,7.23,172.87,172.86,120.0]
[1717557565429,2.1397,172.92,172.87,2.1403]
[1717557565598,7.23,172.88,172.87,2.1403]
[1717557572818,7.23,172.89,172.88,122.1402]
[1717557573137,6.547,172.97,172.9,122.1399]
[1717557573307,2.1393,172.96,172.91,2.1398]
[1717557573501,7.23,172.92,172.91,2.1398]
[1717557573706,7.23,172.92,172.9,122.1399]
[1717557574007,6.547,172.97,172.9,122.1399]
[1717557574008,7.23,172.91,172.9,122.1399]
[1717557575614,2.1392,172.96,172.91,2.1398]
[1717557575907,28.92,172.98,172.92,122.1396]
[1717557576218,7.23,172.93,172.92,122.1396]
[1717557577928,31.059,172.98,172.92,122.1396]
[1717557578110,7.23,172.93,172.92,122.1397]
[1717557580156,7.23,172.93,172.92,2.1397]
[1717557580433,7.23,172.93,172.91,2.1397]
[1717557580647,7.23,172.92,172.91,2.1397]
[1717557581332,7.23,172.92,172.9,122.1398]
[1717557581534,7.23,172.91,172.89,382.44]
[1717557581719,7.23,172.9,172.89,380.3]
[1717557582135,7.23,172.9,172.89,382.44]
[1717557583424,7.23,172.9,172.89,2.14]
[1717557585118,7.23,172.9,172.88,2.1401]
[1717557585325,7.23,172.9,172.87,4.2805]
[1717557585326,7.23,172.9,172.89,2.14]
[1717557586317,23.859,173.0,172.91,120.0]
[1717557586545,2.1391,172.97,172.92,2.1396]
[1717557586714,31.059,172.98,172.93,2.1395]
[1717557586918,7.23,172.94,172.93,2.1395]
[1717557587932,7.23,172.94,172.92,2.1396]
[1717557588151,7.23,172.93,172.92,2.1396]
[1717557589822,2.1392,172.96,172.92,2.1397]
[1717557590021,28.92,172.98,172.91,122.1397]
[1717557590226,7.23,172.92,172.91,122.1397]
[1717557591149,2.1391,172.97,172.92,2.1396]
[1717557591329,7.23,172.93,172.92,2.1397]
[1717557591530,7.23,172.93,172.92,6.7591]
[1717557591738,7.23,172.94,172.93,122.1395]
[1717557594566,7.23,172.94,172.92,2.1396]
[1717557594747,7.23,172.93,172.91,500.3]
[1717557594927,7.23,172.93,172.92,2.1397]
[1717557595633,7.23,172.93,172.91,380.3]
[1717557595829,7.23,172.92,172.91,382.4398]
[1717557598139,7.23,172.92,172.91,2.1398]
[1717557601231,7.23,172.92,172.89,124.2799]
[1717557601232,7.23,172.92,172.88,2.1401]
[1717557601464,7.23,172.89,172.88,2.1401]
[1717557601640,2.1394,172.95,172.9,2.1398]
[1717557601963,7.23,172.91,172.9,2.1398]
[1717557602751,2.1392,172.96,172.91,2.1398]
[1717557602945,2.1391,172.97,172.92,2.1397]
[1717557603146,7.23,172.93,172.91,2.1397]
[1717557603343,7.23,172.92,172.9,2.1399]
[1717557603566,7.23,172.91,172.9,2.1399]
[1717557604354,2.1392,172.96,172.91,2.1398]
[1717557604548,7.23,172.92,172.91,2.1398]
[1717557605471,7.23,172.92,172.89,2.1399]
[1717557605673,7.23,172.9,172.89,2.14]
[1717557611270,7.23,172.9,172.88,2.1402]
[1717557611481,7.23,172.9,172.85,19.2642]
[1717557611482,7.23,172.89,172.86,2.1403]
[1717557611658,7.23,172.87,172.86,2.1403]
[1717557613169,7.23,172.87,172.86,122.1403]
[1717557613353,2.1397,172.92,172.88,2.1402]
[1717557613683,4.279,172.94,172.86,120.0]
[1717557613684,7.23,172.89,172.86,120.0]
[1717557613971,10.3636,172.95,172.89,2.14]
[1717557614149,2.1395,172.94,172.89,2.14]
[1717557614349,7.23,172.9,172.89,2.14]
[1717557615174,7.23,172.9,172.88,122.1401]
[1717557615568,7.23,172.89,172.88,122.1401]
[1717557617464,7.23,172.89,172.87,2.1402]
[1717557617694,7.23,172.88,172.87,2.1402]
[1717557617974,7.23,172.88,172.86,2.1403]
[1717557618274,7.23,172.87,172.86,2.1403]
[1717557619788,7.23,172.87,172.85,500.3]
[1717557619789,7.23,172.87,172.85,380.3]
[1717557619981,7.23,172.86,172.84,2.1406]
[1717557620207,7.23,172.85,172.84,2.1406]
[1717557620479,2.1401,172.89,172.85,2.1405]
[1717557620694,7.23,172.86,172.85,2.1405]
[1717557621156,7.23,172.86,172.84,120.0]
[1717557621355,7.23,172.85,172.84,2.1407]
[1717557621974,7.23,172.85,172.84,122.1407]
[1717557622470,2.14,172.9,172.85,2.1404]
[1717557622679,8.7709,172.92,172.86,120.0]
[1717557622876,7.23,172.87,172.86,120.0]
[1717557623185,2.1397,172.92,172.87,2.1402]
[1717557623368,7.23,172.88,172.87,2.1402]
[1717557623565,6.6377,172.96,172.88,120.0]
[1717557623799,7.23,172.89,172.88,120.0]
[1717557624074,7.23,172.89,172.87,4.2805]
[1717557624075,7.23,172.89,172.87,2.1403]
[1717557624282,6.4181,172.95,172.87,2.1403]
[1717557624283,7.23,172.88,172.87,2.1403]
[1717557624594,2.1396,172.93,172.88,122.1401]
[1717557624790,7.23,172.89,172.88,122.1401]
[1717557625574,2.1396,172.93,172.88,122.1401]
[1717557625776,7.23,172.89,172.88,122.1401]
[1717557626178,7.23,172.89,172.87,2.1402]
[1717557626373,2.1397,172.92,172.88,2.1402]
[1717557626575,7.23,172.89,172.88,2.1402]
[1717557626786,7.23,172.89,172.87,2.1402]
[1717557627090,7.23,172.88,172.87,2.1402]
[1717557627791,2.1396,172.93,172.88,2.1401]
[1717557628088,2.1396,172.93,172.89,2.14]
[1717557628292,7.23,172.9,172.89,2.14]
[1717557628468,7.23,172.9,172.88,2.1401]
[1717557628670,2.1397,172.92,172.86,120.0]
[1717557629180,2.1394,172.95,172.9,2.1399]
[1717557629382,7.23,172.91,172.9,2.1399]
[1717557629590,7.23,172.91,172.9,122.1399]
[1717557629906,7.23,172.91,172.89,2.14]
[1717557630207,7.23,172.9,172.89,2.14]
[1717557630681,4.278,172.98,172.9,120.0]
[1717557630896,7.23,172.91,172.9,120.0]
[1717557631075,7.23,172.91,172.9,122.1399]
[1717557632409,39.6149,172.98,172.91,2.1398]
[1717557632410,2.1392,172.96,172.91,2.1398]
[1717557632619,7.23,172.92,172.91,2.1398]
[1717557633608,2.1393,172.95,172.91,2.1398]
[1717557633786,2.1392,172.96,172.91,2.1398]
[1717557633988,7.23,172.92,172.91,2.1398]
[1717557635076,16.7985,173.0,172.92,120.0]
[1717557635313,7.23,172.93,172.92,122.1396]
[1717557637292,2.1389,172.99,172.94,122.1394]
[1717557637505,7.23,172.95,172.94,122.1394]
[1717557638001,2.1389,172.99,172.94,128.3026]
[1717557638212,7.23,172.95,172.94,128.3026]
[1717557638387,7.23,172.95,172.94,122.1394]
[1717557639897,2.1389,172.98,172.94,120.0]
[1717557640099,7.23,172.95,172.94,120.0]
[1717557641002,7.23,172.95,172.93,2.1395]
[1717557641189,7.23,172.94,172.93,2.1395]
[1717557642311,7.23,172.94,172.89,0.17]
[1717557642312,28.92,172.98,172.88,128.5606]
[1717557642511,2.1392,172.96,172.91,2.1397]
[1717557642736,7.23,172.92,172.9,120.0]
[1717557643021,7.23,172.91,172.9,120.0]
[1717557643195,7.23,172.91,172.9,122.1399]
[1717557643396,2.1392,172.96,172.92,2.1397]
[1717557643598,7.23,172.93,172.92,2.1397]
[1717557644094,7.23,172.93,172.91,2.1397]
[1717557644295,7.23,172.93,172.92,2.1397]
[1717557644909,7.23,172.93,172.92,122.1397]
[1717557645910,33.198,172.98,172.93,2.1395]
[1717557645911,2.139,172.98,172.93,2.1395]
[1717557646092,7.23,172.94,172.93,2.1395]
[1717557646824,7.23,172.94,172.92,122.1396]
[1717557647002,7.23,172.94,172.93,2.1395]
[1717557649298,7.23,172.95,172.93,2.1395]
[1717557649496,2.139,172.98,172.94,122.1394]
[1717557649703,7.23,172.95,172.94,122.1394]
[1717557650519,2.1385,173.02,172.97,2.139]
[1717557650723,26.97155963,173.07,172.99,120.0]
[1717557651024,7.23,173.0,172.99,122.1388]
[1717557651224,7.23,173.0,172.99,120.0]
[1717557651405,7.23,173.0,172.98,2.1389]
[1717557651720,7.23,172.99,172.98,2.1389]
[1717557651912,2.138,173.06,173.01,2.1385]
[1717557652134,20.6824,173.09,173.0,120.0]
[1717557652303,7.23,173.01,172.99,2.1387]
[1717557652624,7.23,173.0,172.99,2.1387]
[1717557652806,2.1381,173.05,173.0,2.1386]
[1717557652998,2.1381,173.05,172.99,2.1388]
[1717557653194,7.23,173.0,172.99,2.1388]
[1717557653716,2.1381,173.05,173.0,122.1386]
[1717557653906,6.3872,173.08,173.0,120.0]
[1717557654103,31.0578,173.07,173.02,2.1384]
[1717557654419,2.1376,173.09,173.03,2.1383]
[1717557654601,7.23,173.06,173.03,2.1383]
[1717557654802,2.1376,173.09,173.04,0.57623279]
[1717557655022,7.23,173.05,173.04,0.57623279]
[1717557657125,7.23,173.05,173.04,122.71443279]
[1717557657330,7.23,173.06,173.04,122.71443279]
[1717557657532,7.23,173.06,173.05,0.57619949]
[1717557658305,7.23,173.06,173.04,120.0]
[1717557658716,7.23,173.05,173.04,120.0]
[1717557659137,2.1376,173.09,173.04,120.0]
[1717557659307,2.1375,173.1,173.04,120.0]
[1717557659635,7.23,173.07,173.04,120.0]
[1717557660208,7.23,173.07,173.05,2.138]
[1717557660415,7.23,173.07,173.04,122.1381]
[1717557662143,7.23,173.06,173.04,122.1381]
[1717557663533,7.23,173.06,173.05,2.1381]
[1717557664427,7.23,173.06,173.01,500.3]
[1717557664748,7.23,173.07,173.01,380.3]
[1717557664749,7.23,173.02,173.01,380.3]
[1717557665059,9.3684,173.02,172.97,2.139]
[1717557665346,7.23,172.98,172.97,2.139]
[1717557667441,7.23,172.98,172.97,22.139]
[1717557668119,7.23,172.98,172.97,2.139]
[1717557670219,8.5498,173.11,173.02,2.1384]
[1717557670444,7.23,173.04,173.01,2.1385]
[1717557670632,7.23,173.03,173.01,2.1385]
[1717557671023,10.6881,173.09,173.01,2.1385]
[1717557671350,7.23,173.02,173.01,2.1385]
[1717557671653,7.23,173.02,173.0,2.1386]
[1717557671825,2.1381,173.05,173.0,2.1386]
[1717557671826,7.23,173.01,173.0,2.1386]
[1717557672947,2.1379,173.07,173.01,122.1385]
[1717557673151,7.23,173.04,173.03,122.1382]
[1717557675428,2.1378,173.07,173.03,122.1382]
[1717557675641,7.23,173.04,173.03,122.1382]
[1717557677327,19.038,173.12,173.05,122.138]
[1717557677532,7.23,173.06,173.05,122.138]
[1717557678133,7.23,173.06,173.04,2.1381]
[1717557678345,7.23,173.05,173.04,2.1381]
[1717557690542,2.9580188,173.14,173.09,2.1375]
[1717557690759,7.23,173.1,173.09,2.1374]
[1717557692865,2.9580188,173.14,173.09,2.1374]
[1717557693173,2.9580188,173.14,173.1,120.0]
[1717557693472,7.23,173.11,173.1,120.0]
[1717557695863,7.23,173.11,173.08,122.1376]
[1717557696064,7.23,173.09,173.08,2.1376]
[1717557696271,7.23,173.09,173.06,504.5759]
[1717557696574,7.23,173.07,173.06,504.5759]
[1717557696745,5.0950188,173.14,173.06,144.2759]
[1717557697060,5.0950188,173.14,173.08,2.1377]
[1717557697061,2.1373,173.12,173.08,2.1377]
[1717557697249,7.23,173.09,173.08,2.1377]
[1717557698447,7.23,173.09,173.08,122.1377]
[1717557700163,2.9580188,173.14,173.1,2.1374]
[1717557700374,7.23,173.11,173.1,2.1374]
[1717557701858,7.23,173.11,173.1,122.1374]
[1717557703061,7.23,173.11,173.1,120.0]
[1717557703454,7.23,173.11,173.09,2.1375]
[1717557705056,7.23,173.11,173.1,2.1374]
[1717557706975,7.23,173.11,173.09,2.1375]
[1717557707378,0.8210188,173.14,173.12,120.0]
[1717557707672,8.0510188,173.14,173.13,2.1371]
[1717557708251,0.8210188,173.14,173.13,133.1361]
[1717557708980,0.8210188,173.14,173.13,126.7513]
[1717557709169,0.8210188,173.14,173.13,544.9502]
[1717557709470,0.8210188,173.14,173.13,564.9502]
[1717557709671,0.8210188,173.14,173.13,572.1802]
[1717557709858,0.8210188,173.14,173.13,564.9502]
[1717557710470,0.8210188,173.14,173.13,548.457]
[1717557713659,8.0510188,173.14,173.13,2.1371]